[Event "WTCC-65 2018"]
[Site "Radebeul"]
[Date "2018.07.12"]
[Round "6"]
[White "Baum, Bernd"]
[Black "Sharif, Mehrshad"]
[Result "0-1"]
[ECO "A06"]
[WhiteElo "2280"]
[BlackElo "2353"]
[Annotator "ChessBase"]
[PlyCount "98"]
[EventDate "2018.07.07"]
[EventType "team-tourn"]
[EventCountry "GER"]
[SourceTitle "playchess.com"]
[Source "ChessBase"]
[SourceQuality "1"]
[TimeControl "40/5400+30:1800+30"]

1. Nf3 {[%emt 0:00:00]} d5 {[%emt 0:00:00]} 2. g3 {[%emt 0:00:00]} Bg4 {[%emt 0:00:02]} 3. Bg2 {[%emt 0:00:00]} c6 {[%emt 0:00:25]} 4. b3 {[%emt 0:05:31]} Nd7 {[%emt 0:01:33]} 5. Bb2 {[%emt 0:00:25]} e6 {[%emt 0:00:30]} 6. c4 {[%emt 0:00:40]} Ngf6 {[%emt 0:00:15]} 7. O-O {[%emt 0:00:32]} Bd6 {[%emt 0:00:52]} 8. d3 {[%emt 0:00:56]} O-O {[%emt 0:00:43]} 9. Nbd2 {[%emt 0:00:36]} Qe7 {[%emt 0:00:45]} 10. Qc2 {[%emt 0:02:19]} h6 {[%emt 0:00:42]} 11. Rac1 {[%emt 0:10:15]} a5 {[%emt 0:03:13]} 12. e4 {[%emt 0:02:46]} dxe4 {[%emt 0:05:47]} 13. dxe4 {[%emt 0:01:17]} e5 {[%emt 0:01:12]} 14. h3 {[%emt 0:02:28]} Bxf3 {[%emt 0:03:37]} 15. Nxf3 {[%emt 0:02:42]} Ba3 {[%emt 0:01:14]} 16. Bxa3 {[%emt 0:11:23]} Qxa3 {[%emt 0:02:09]} 17. Rcd1 {[%emt 0:02:50]} Rfe8 {[%emt 0:02:32]} 18. Nd2 {[%emt 0:07:16]} a4 {[%emt 0:05:38]} 19. Rb1 {[%emt 0:06:12]} axb3 {[%emt 0:01:05]} 20. axb3 {[%emt 0:00:12]} Qb4 {[%emt 0:00:46]} 21. f3 {[%emt 0:16:37]} Nc5 {[%emt 0:01:12]} 22. Rf2 {[%emt 0:00:50]} Rad8 {[%emt 0:07:52]} 23. Bf1 {[%emt 0:01:21]} Rd4 {[%emt 0:00:27]} 24. Rb2 {[%emt 0:01:33]} Red8 {[%emt 0:06:19]} 25. Nb1 {[%emt 0:04:37]} Nh7 {[%emt 0:08:28]} 26. Nc3 {[%emt 0:03:07]} Ng5 {[%emt 0:03:06]} 27. Kg2 {[%emt 0:01:25]} Na6 {[%emt 0:09:18]} 28. Na2 {[%emt 0:02:19]} Qe7 {[%emt 0:03:20]} 29. b4 {[%emt 0:01:40]} Qe6 {[%emt 0:04:56]} 30. Kh2 {[%emt 0:00:42]} Rd2 {[%emt 0:00:54]} 31. Qxd2 {[%emt 0:02:05]} Rxd2 {[%emt 0:00:36]} 32. Rbxd2 {[%emt 0:00:02]} Qf6 {[%emt 0:01:39]} 33. Bg2 {[%emt 0:02:36]} h5 {[%emt 0:01:23]} 34. h4 {[%emt 0:01:34]} Ne6 {[%emt 0:00:15]} 35. Rd7 {[%emt 0:00:56]} g5 {[%emt 0:00:59]} 36. hxg5 {[%emt 0:01:33]} Nxg5 {[%emt 0:00:11]} 37. Rxb7 {[%emt 0:01:47]} h4 {[%emt 0:04:39]} 38. gxh4 {[%emt 0:00:28]} Nxe4 {[%emt 0:00:33]} 39. Re2 {[%emt 0:01:50]} Qf4+ {[%emt 0:01:42]} 40. Kg1 {[%emt 0:00:10]} Ng3 {[%emt 0:00:26]} 41. Rc2 {[%emt 0:06:31]} Qd4+ {[%emt 0:02:51]} 42. Kh2 {[%emt 0:02:05]} Qxh4+ {[%emt 0:02:09]} 43. Kg1 {[%emt 0:00:17]} Qd4+ {[%emt 0:00:47]} 44. Kh2 {[%emt 0:00:32]} Qf4 {[%emt 0:01:38]} 45. Kg1 {[%emt 0:01:22]} Qe3+ {[%emt 0:01:05]} 46. Rf2 {[%emt 0:04:53]} Ne2+ {[%emt 0:05:15]} 47. Kf1 {[%emt 0:00:05]} Nf4 {[%emt 0:03:19]} 48. Rd7 {[%emt 0:17:36]} Nxb4 {[%emt 0:01:20]} 49. Rd1 {[%emt 0:00:08]} Qb3 {[%emt 0:01:43]} 0-1

[Event "WTCC-65 2018"]
[Site "Radebeul"]
[Date "2018.07.12"]
[Round "6"]
[White "Stebbings, Anthony J"]
[Black "Haakert, Juergen"]
[Result "1/2-1/2"]
[ECO "A80"]
[WhiteElo "2257"]
[BlackElo "2302"]
[Annotator "NA"]
[PlyCount "54"]
[EventDate "2018.07.07"]
[EventType "team-tourn"]
[EventCountry "GER"]
[SourceTitle "playchess.com"]
[Source "ChessBase"]
[SourceQuality "1"]
[TimeControl "40/5400+30:1800+30"]

1. d4 {[%emt 0:00:00]} f5 {[%emt 0:00:00]} 2. Bg5 {[%emt 0:00:00]} g6 {[%emt 0:00:19]} 3. Nc3 {[%emt 0:00:00]} Bg7 {[%emt 0:00:39]} 4. h4 {[%emt 0:00:00]} Nc6 {[%emt 0:00:54]} 5. Nf3 {[%emt 0:10:48]} h6 {[%emt 0:00:55]} 6. Bf4 {[%emt 0:00:21]} d6 {[%emt 0:00:07]} 7. e4 {[%emt 0:04:53]} e5 {[%emt 0:00:20]} 8. dxe5 {[%emt 0:00:09]} fxe4 {[%emt 0:00:10]} 9. Nxe4 {[%emt 0:01:27]} Bf5 {[%emt 0:00:21]} 10. Bd3 {[%emt 0:11:51]} dxe5 {[%emt 0:00:27]} 11. Bd2 {[%emt 0:00:23]} Nf6 {[%emt 0:01:00]} 12. Qe2 {[%emt 0:05:06]} Qe7 {[%emt 0:05:40]} 13. O-O-O {[%emt 0:05:41]} O-O-O {[%emt 0:00:13]} 14. Nxf6 {[%emt 0:07:15]} Qxf6 {[%emt 0:08:12]} 15. Bc3 {[%emt 0:04:39]} Rhe8 {[%emt 0:04:14]} 16. Rhe1 {[%emt 0:07:14]} Qf7 {[%emt 0:10:52]} 17. Bc4 {[%emt 0:02:39]} Rxd1+ {[%emt 0:01:24]} 18. Rxd1 {[%emt 0:00:44]} Qf8 {[%emt 0:00:32]} 19. Qe3 {[%emt 0:03:05]} a6 {[%emt 0:10:20]} 20. Re1 {[%emt 0:01:13]} Bd7 {[%emt 0:05:44]} 21. Bd5 {[%emt 0:03:25]} Nd4 {[%emt 0:02:56]} 22. Be4 {[%emt 0:00:52]} Qf7 {[%emt 0:01:14]} 23. b3 {[%emt 0:02:04]} Kb8 {[%emt 0:05:56]} 24. Kb1 {[%emt 0:01:35]} Nb5 {[%emt 0:01:41]} 25. Bb2 {[%emt 0:00:27]} Nd6 {[%emt 0:00:24]} 26. Nd2 {[%emt 0:02:20]} Rf8 {[%emt 0:12:12]} 27. f3 {[%emt 0:03:06]} Re8 {[%emt 0:02:05]} 1/2-1/2

[Event "WTCC-65 2018"]
[Site "Radebeul"]
[Date "2018.07.12"]
[Round "6"]
[White "Bernard, Christophe"]
[Black "Bartsch, Berthold"]
[Result "1/2-1/2"]
[ECO "E08"]
[WhiteElo "2253"]
[BlackElo "2248"]
[Annotator "NA"]
[PlyCount "39"]
[EventDate "2018.07.07"]
[EventType "team-tourn"]
[EventCountry "GER"]
[SourceTitle "playchess.com"]
[Source "ChessBase"]
[SourceQuality "1"]
[TimeControl "40/5400+30:1800+30"]

1. d4 {[%emt 0:00:00]} Nf6 {[%emt 0:01:37]} 2. Nf3 {[%emt 0:00:00]} e6 {[%emt 0:01:10]} 3. c4 {[%emt 0:00:19]} d5 {[%emt 0:00:26]} 4. g3 {[%emt 0:00:30]} Nbd7 {[%emt 0:04:23]} 5. Bg2 {[%emt 0:01:11]} Be7 {[%emt 0:01:06]} 6. O-O {[%emt 0:00:34]} O-O {[%emt 0:00:09]} 7. Qc2 {[%emt 0:01:56]} c6 {[%emt 0:07:41]} 8. Rd1 {[%emt 0:05:24]} b6 {[%emt 0:07:07]} 9. b3 {[%emt 0:26:34]} Bb7 {[%emt 0:00:49]} 10. Nc3 {[%emt 0:06:56]} Rc8 {[%emt 0:00:26]} 11. e4 {[%emt 0:01:19]} dxe4 {[%emt 0:04:14]} 12. Nxe4 {[%emt 0:05:00]} Nxe4 {[%emt 0:00:49]} 13. Qxe4 {[%emt 0:00:04]} Bf6 {[%emt 0:01:09]} 14. Bf4 {[%emt 0:05:34]} Qe7 {[%emt 0:01:40]} 15. Rac1 {[%emt 0:00:56]} Rfd8 {[%emt 0:01:23]} 16. h4 {[%emt 0:00:54]} Ba8 {[%emt 0:04:32]} 17. Ng5 {[%emt 0:04:19]} g6 {[%emt 0:08:12]} 18. Qe2 {[%emt 0:01:07]} c5 {[%emt 0:03:24]} 19. Bxa8 {[%emt 0:00:13]} Rxa8 {[%emt 0:00:02]} 20. dxc5 1/2-1/2

[Event "WTCC-65 2018"]
[Site "Radebeul"]
[Date "2018.07.12"]
[Round "6"]
[White "Kierzek, Matthias"]
[Black "Giffard, Nicolas"]
[Result "1-0"]
[ECO "D37"]
[WhiteElo "2247"]
[BlackElo "2260"]
[Annotator "NA"]
[PlyCount "71"]
[EventDate "2018.07.07"]
[EventType "team-tourn"]
[EventCountry "GER"]
[SourceTitle "playchess.com"]
[Source "ChessBase"]
[SourceQuality "1"]
[TimeControl "40/5400+30:1800+30"]

1. d4 {[%emt 0:00:00]} Nf6 {[%emt 0:00:00]} 2. c4 {[%emt 0:00:00]} e6 {[%emt 0:00:04]} 3. Nf3 {[%emt 0:00:00]} d5 {[%emt 0:00:11]} 4. Nc3 {[%emt 0:00:00]} Be7 {[%emt 0:00:07]} 5. Bf4 {[%emt 0:00:15]} O-O {[%emt 0:00:09]} 6. e3 {[%emt 0:00:04]} b6 {[%emt 0:00:06]} 7. cxd5 {[%emt 0:00:07]} Nxd5 {[%emt 0:00:06]} 8. Nxd5 {[%emt 0:00:05]} Qxd5 {[%emt 0:00:07]} 9. Be2 {[%emt 0:00:05]} c5 {[%emt 0:06:53]} 10. Ne5 {[%emt 0:07:47]} cxd4 {[%emt 0:02:10]} 11. Bf3 {[%emt 0:00:41]} Qa5+ {[%emt 0:02:08]} 12. Kf1 {[%emt 0:00:18]} Ba6+ {[%emt 0:00:13]} 13. Kg1 {[%emt 0:00:21]} f6 {[%emt 0:01:47]} 14. Qb3 {[%emt 0:12:31]} fxe5 {[%emt 0:01:17]} 15. Qxe6+ {[%emt 0:00:06]} Kh8 {[%emt 0:00:23]} 16. Qxe7 {[%emt 0:00:32]} Nc6 {[%emt 0:00:10]} 17. Bxc6 {[%emt 0:00:38]} exf4 {[%emt 0:00:26]} 18. Bxa8 {[%emt 0:00:24]} Rxa8 {[%emt 0:00:10]} 19. exd4 {[%emt 0:04:40]} Qd2 {[%emt 0:00:28]} 20. Qa3 {[%emt 0:05:59]} Bb7 {[%emt 0:01:42]} 21. Qc3 {[%emt 0:03:58]} Qe2 {[%emt 0:00:08]} 22. Re1 {[%emt 0:02:56]} Qg4 {[%emt 0:00:16]} 23. f3 {[%emt 0:00:20]} Qh4 {[%emt 0:00:08]} 24. Re5 {[%emt 0:03:14]} h6 {[%emt 0:00:16]} 25. Qe1 {[%emt 0:01:34]} Qd8 {[%emt 0:00:20]} 26. Qf2 {[%emt 0:03:24]} Rc8 {[%emt 0:00:31]} 27. h3 {[%emt 0:00:10]} Rc4 {[%emt 0:05:05]} 28. Kh2 {[%emt 0:00:18]} Rxd4 {[%emt 0:00:07]} 29. Rhe1 {[%emt 0:00:24]} Bc6 {[%emt 0:00:10]} 30. Qc2 {[%emt 0:06:14]} Rd6 {[%emt 0:00:16]} 31. Rf5 {[%emt 0:17:16]} Bxf3 {[%emt 0:06:51]} 32. Qf2 {[%emt 0:02:10]} Bd5 {[%emt 0:04:09]} 33. Qxf4 {[%emt 0:01:17]} Rg6 {[%emt 0:03:36]} 34. Rf8+ {[%emt 0:04:39]} Kh7 {[%emt 0:00:07]} 35. Rxd8 {[%emt 0:00:12]} Rxg2+ {[%emt 0:00:12]} 36. Kh1 {[%emt 0:00:03]} 1-0

[Event "WTCC-65 2018"]
[Site "Radebeul"]
[Date "2018.07.12"]
[Round "6"]
[White "Rahls, Peter"]
[Black "Faibisovich, Vadim Z"]
[Result "1/2-1/2"]
[ECO "B23"]
[WhiteElo "2238"]
[BlackElo "2312"]
[Annotator "NA"]
[PlyCount "96"]
[EventDate "2018.07.07"]
[EventType "team-tourn"]
[EventCountry "GER"]
[SourceTitle "playchess.com"]
[Source "ChessBase"]
[SourceQuality "1"]
[TimeControl "40/5400+30:1800+30"]

1. e4 {[%emt 0:00:00]} c5 {[%emt 0:00:00]} 2. Ne2 {[%emt 0:00:02]} Nc6 {[%emt 0:01:48]} 3. Nbc3 {[%emt 0:00:14]} g6 {[%emt 0:04:14]} 4. g3 {[%emt 0:00:21]} Bg7 {[%emt 0:00:49]} 5. Bg2 {[%emt 0:00:16]} e6 {[%emt 0:06:56]} 6. O-O {[%emt 0:00:25]} Nge7 {[%emt 0:01:12]} 7. f4 {[%emt 0:01:21]} d6 {[%emt 0:03:24]} 8. d3 {[%emt 0:00:59]} O-O {[%emt 0:02:59]} 9. Be3 {[%emt 0:06:39]} Nd4 {[%emt 0:04:06]} 10. Qd2 {[%emt 0:02:45]} Rb8 {[%emt 0:01:56]} 11. Nd1 {[%emt 0:01:45]} b5 {[%emt 0:06:38]} 12. g4 {[%emt 0:04:39]} f5 {[%emt 0:03:46]} 13. gxf5 {[%emt 0:10:32]} exf5 {[%emt 0:01:34]} 14. c3 {[%emt 0:00:26]} Nxe2+ {[%emt 0:03:23]} 15. Qxe2 {[%emt 0:00:13]} Qc7 {[%emt 0:04:41]} 16. Nf2 {[%emt 0:01:47]} Re8 {[%emt 0:07:03]} 17. Nh3 {[%emt 0:03:40]} h6 {[%emt 0:04:05]} 18. Qf2 {[%emt 0:04:22]} Be6 {[%emt 0:02:02]} 19. e5 {[%emt 0:07:21]} Rbc8 {[%emt 0:05:40]} 20. d4 {[%emt 0:02:54]} cxd4 {[%emt 0:02:50]} 21. Bxd4 {[%emt 0:01:44]} dxe5 {[%emt 0:05:55]} 22. Bxe5 {[%emt 0:02:09]} Bxe5 {[%emt 0:05:16]} 23. fxe5 {[%emt 0:00:13]} Qxe5 {[%emt 0:04:14]} 24. Rfe1 {[%emt 0:02:11]} Qf6 {[%emt 0:00:39]} 25. Qe3 {[%emt 0:01:10]} Bd5 {[%emt 0:02:40]} 26. Qxh6 {[%emt 0:05:46]} Bxg2 {[%emt 0:00:31]} 27. Kxg2 {[%emt 0:00:14]} Nd5 {[%emt 0:04:34]} 28. Qd2 {[%emt 0:01:58]} Qc6 {[%emt 0:01:34]} 29. Kg1 {[%emt 0:03:49]} Qc5+ {[%emt 0:01:02]} 30. Qf2 {[%emt 0:02:03]} Qxf2+ {[%emt 0:02:44]} 31. Kxf2 {[%emt 0:00:43]} Kf7 {[%emt 0:00:57]} 32. Rxe8 {[%emt 0:01:50]} Rxe8 {[%emt 0:00:18]} 33. Rd1 {[%emt 0:00:27]} Nf6 {[%emt 0:02:46]} 34. Ng5+ {[%emt 0:01:42]} Kg7 {[%emt 0:00:09]} 35. Rd6 {[%emt 0:02:44]} Ng4+ {[%emt 0:00:49]} 36. Kg3 {[%emt 0:02:51]} Re2 {[%emt 0:01:33]} 37. h4 {[%emt 0:02:39]} Rxb2 {[%emt 0:01:30]} 38. Ra6 {[%emt 0:00:29]} Rc2 {[%emt 0:00:26]} 39. Rxa7+ {[%emt 0:00:27]} Kf6 {[%emt 0:00:46]} 40. Ra6+ {[%emt 0:04:27]} Kg7 {[%emt 0:00:49]} 41. Ra7+ {[%emt 0:31:49]} Kf6 {[%emt 0:30:10]} 42. Ra6+ {[%emt 0:07:04]} Ke5 {[%emt 0:00:48]} 43. Re6+ {[%emt 0:00:00]} Kd5 {[%emt 0:00:08]} 44. Rxg6 {[%emt 0:00:00]} Rxc3+ {[%emt 0:00:38]} 45. Kf4 {[%emt 0:00:01]} Rc4+ {[%emt 0:01:15]} 46. Kg3 {[%emt 0:01:43]} Rc3+ {[%emt 0:00:50]} 47. Kf4 {[%emt 0:01:23]} Rc4+ {[%emt 0:00:07]} 48. Kg3 {[%emt 0:00:56]} Rc3+ {[%emt 0:00:12]} 1/2-1/2

[Event "WTCC-65 2018"]
[Site "Radebeul"]
[Date "2018.07.12"]
[Round "6"]
[White "Oechslein, Rainer"]
[Black "Singer, Hans"]
[Result "1/2-1/2"]
[ECO "D01"]
[WhiteElo "2228"]
[BlackElo "2175"]
[Annotator "NA"]
[PlyCount "109"]
[EventDate "2018.07.07"]
[EventType "team-tourn"]
[EventCountry "GER"]
[SourceTitle "playchess.com"]
[Source "ChessBase"]
[SourceQuality "1"]
[TimeControl "40/5400+30:1800+30"]

1. d4 {[%emt 0:00:00]} Nf6 {[%emt 0:00:00]} 2. Nc3 {[%emt 0:00:04]} d5 {[%emt 0:01:29]} 3. Bg5 {[%emt 0:00:07]} Bf5 {[%emt 0:04:39]} 4. f3 {[%emt 0:00:17]} c6 {[%emt 0:03:11]} 5. Qd2 {[%emt 0:00:57]} Nbd7 {[%emt 0:01:33]} 6. e3 {[%emt 0:03:40]} h6 {[%emt 0:04:34]} 7. Bh4 {[%emt 0:00:17]} Qb6 {[%emt 0:01:12]} 8. O-O-O {[%emt 0:01:49]} e6 {[%emt 0:00:38]} 9. Bd3 {[%emt 0:09:50]} Bxd3 {[%emt 0:02:09]} 10. Qxd3 {[%emt 0:05:40]} O-O-O {[%emt 0:05:30]} 11. e4 {[%emt 0:02:31]} dxe4 {[%emt 0:03:27]} 12. fxe4 {[%emt 0:03:52]} Ne5 {[%emt 0:05:38]} 13. Qe2 {[%emt 0:04:16]} Rxd4 {[%emt 0:03:09]} 14. Rxd4 {[%emt 0:10:38]} Qxd4 {[%emt 0:00:03]} 15. Nf3 {[%emt 0:01:14]} Nxf3 {[%emt 0:00:23]} 16. gxf3 {[%emt 0:00:05]} Ba3 {[%emt 0:07:24]} 17. Qd3 {[%emt 0:06:09]} Bc5 {[%emt 0:00:15]} 18. Rd1 {[%emt 0:07:06]} Rd8 {[%emt 0:01:53]} 19. Qxd4 {[%emt 0:01:56]} Bxd4 {[%emt 0:00:31]} 20. Rd3 {[%emt 0:00:08]} g5 {[%emt 0:00:40]} 21. Be1 {[%emt 0:04:01]} Be5 {[%emt 0:01:14]} 22. Rxd8+ {[%emt 0:08:06]} Kxd8 {[%emt 0:00:02]} 23. h4 g4 {[%emt 0:05:14]} 24. fxg4 {[%emt 0:02:25]} Nxg4 {[%emt 0:00:02]} 25. Kd2 h5 {[%emt 0:00:50]} 26. Nd1 {[%emt 0:03:38]} Ke7 {[%emt 0:01:26]} 27. Ke2 {[%emt 0:01:42]} Bf6 {[%emt 0:05:05]} 28. b3 {[%emt 0:01:02]} Bd4 {[%emt 0:03:33]} 29. c3 {[%emt 0:08:32]} Be5 {[%emt 0:01:10]} 30. Nb2 {[%emt 0:00:33]} f5 {[%emt 0:01:32]} 31. Kf3 {[%emt 0:01:15]} Kf6 {[%emt 0:02:16]} 32. Nd3 {[%emt 0:01:51]} Bd6 {[%emt 0:00:25]} 33. Nc1 {[%emt 0:03:21]} Ne5+ 34. Ke3 {[%emt 0:00:45]} Bc5+ {[%emt 0:03:45]} 35. Kf4 {[%emt 0:00:25]} Ng6+ {[%emt 0:01:02]} 36. Kf3 {[%emt 0:00:27]} Be7 {[%emt 0:03:21]} 37. Ne2 {[%emt 0:01:34]} e5 {[%emt 0:04:09]} 38. exf5 {[%emt 0:00:40]} Kxf5 {[%emt 0:00:29]} 39. Ng3+ {[%emt 0:00:09]} Ke6 {[%emt 0:00:16]} 40. Nxh5 {[%emt 0:00:10]} Bxh4 {[%emt 0:01:40]} 41. Bd2 {[%emt 0:30:52]} Kd5 {[%emt 0:31:45]} 42. Be3 {[%emt 0:05:35]} e4+ {[%emt 0:02:40]} 43. Kg4 {[%emt 0:00:00]} a6 {[%emt 0:00:00]} 44. Kf5 {[%emt 0:00:00]} Ne7+ {[%emt 0:00:00]} 45. Kg4 {[%emt 0:00:00]} b5 {[%emt 0:00:00]} 46. Kxh4 {[%emt 0:00:00]} Nf5+ {[%emt 0:00:00]} 47. Kg5 {[%emt 0:00:00]} Nxe3 {[%emt 0:00:00]} 48. Kf4 {[%emt 0:00:00]} Ng2+ {[%emt 0:00:00]} 49. Kg3 {[%emt 0:00:00]} Ne1 {[%emt 0:00:00]} 50. Kf4 {[%emt 0:00:00]} Nd3+ {[%emt 0:00:00]} 51. Ke3 {[%emt 0:00:00]} Nc1 {[%emt 0:00:00]} 52. Nf6+ {[%emt 0:00:00]} Ke5 {[%emt 0:00:00]} 53. Nxe4 {[%emt 0:00:00]} Nxa2 {[%emt 0:00:00]} 54. Nc5 {[%emt 0:00:00]} Nxc3 {[%emt 0:00:00]} 55. Nxa6 {[%emt 0:00:00]} 1/2-1/2

[Event "WTCC-65 2018"]
[Site "Radebeul"]
[Date "2018.07.12"]
[Round "6"]
[White "Harestad, Thor Geir"]
[Black "Renman, Nils-Gustaf"]
[Result "1/2-1/2"]
[ECO "A06"]
[WhiteElo "2205"]
[BlackElo "2343"]
[Annotator "NA"]
[PlyCount "45"]
[EventDate "2018.07.07"]
[EventType "team-tourn"]
[EventCountry "GER"]
[SourceTitle "playchess.com"]
[Source "ChessBase"]
[SourceQuality "1"]
[TimeControl "40/5400+30:1800+30"]

1. Nf3 {[%emt 0:00:00]} d5 {[%emt 0:00:00]} 2. c4 {[%emt 0:00:03]} e6 {[%emt 0:03:38]} 3. b3 {[%emt 0:02:03]} d4 {[%emt 0:00:49]} 4. Bb2 {[%emt 0:01:58]} c5 {[%emt 0:00:06]} 5. b4 {[%emt 0:01:47]} Nf6 {[%emt 0:02:37]} 6. g3 {[%emt 0:02:49]} Nc6 {[%emt 0:01:49]} 7. b5 {[%emt 0:01:08]} Na5 {[%emt 0:00:26]} 8. d3 {[%emt 0:00:15]} Bd6 {[%emt 0:03:40]} 9. Bg2 {[%emt 0:00:51]} h6 {[%emt 0:01:52]} 10. O-O {[%emt 0:02:18]} O-O {[%emt 0:00:08]} 11. e4 {[%emt 0:03:26]} dxe3 {[%emt 0:13:15]} 12. fxe3 {[%emt 0:00:30]} Rb8 {[%emt 0:13:09]} 13. Nc3 {[%emt 0:07:44]} b6 {[%emt 0:01:36]} 14. Qe2 {[%emt 0:01:07]} Bb7 {[%emt 0:01:13]} 15. e4 {[%emt 0:00:35]} Nd7 {[%emt 0:00:34]} 16. Nd1 {[%emt 0:04:00]} Qc7 {[%emt 0:01:37]} 17. Ne3 {[%emt 0:02:19]} Rbe8 {[%emt 0:07:49]} 18. Nh4 {[%emt 0:03:39]} Be5 {[%emt 0:00:44]} 19. Ng4 {[%emt 0:01:59]} Bxb2 {[%emt 0:01:25]} 20. Qxb2 {[%emt 0:01:43]} h5 {[%emt 0:07:23]} 21. Nf2 {[%emt 0:02:02]} g5 {[%emt 0:02:11]} 22. Nf3 {[%emt 0:01:35]} g4 {[%emt 0:00:10]} 23. Qd2 {[%emt 0:05:02]} 1/2-1/2

[Event "WTCC-65 2018"]
[Site "Radebeul"]
[Date "2018.07.12"]
[Round "6"]
[White "Shushpanov, Vladimir"]
[Black "Glatthor, Thomas"]
[Result "1-0"]
[ECO "B00"]
[WhiteElo "2198"]
[BlackElo "2066"]
[Annotator "NA"]
[PlyCount "69"]
[EventDate "2018.07.07"]
[EventType "team-tourn"]
[EventCountry "GER"]
[SourceTitle "playchess.com"]
[Source "ChessBase"]
[SourceQuality "1"]
[TimeControl "40/5400+30:1800+30"]

1. e4 {[%emt 0:00:00]} d6 {[%emt 0:00:00]} 2. d4 {[%emt 0:00:00]} g6 {[%emt 0:00:02]} 3. Bc4 {[%emt 0:01:03]} Bg7 {[%emt 0:00:12]} 4. Nf3 {[%emt 0:00:59]} h6 {[%emt 0:01:25]} 5. h3 {[%emt 0:01:24]} c6 {[%emt 0:01:00]} 6. Bb3 {[%emt 0:03:02]} Nf6 {[%emt 0:03:26]} 7. Qe2 {[%emt 0:01:05]} e5 {[%emt 0:01:49]} 8. dxe5 {[%emt 0:00:42]} dxe5 {[%emt 0:00:05]} 9. O-O {[%emt 0:00:51]} Qe7 {[%emt 0:01:12]} 10. a4 {[%emt 0:03:44]} Be6 {[%emt 0:04:23]} 11. Bxe6 {[%emt 0:01:48]} Qxe6 {[%emt 0:00:02]} 12. Nbd2 {[%emt 0:02:04]} O-O {[%emt 0:02:02]} 13. Re1 {[%emt 0:07:04]} Nh5 {[%emt 0:07:55]} 14. Qc4 {[%emt 0:00:36]} Qe7 {[%emt 0:00:34]} 15. b3 {[%emt 0:04:30]} Re8 {[%emt 0:03:45]} 16. Bb2 {[%emt 0:05:41]} Nd7 {[%emt 0:04:46]} 17. g3 {[%emt 0:01:19]} Bf8 {[%emt 0:07:47]} 18. Kg2 {[%emt 0:01:42]} Qb4 {[%emt 0:10:54]} 19. Bc3 {[%emt 0:01:22]} Qb6 {[%emt 0:03:19]} 20. Nf1 {[%emt 0:03:46]} a5 {[%emt 0:03:47]} 21. Ne3 {[%emt 0:03:21]} Nhf6 {[%emt 0:20:06]} 22. Rad1 {[%emt 0:05:38]} Bb4 {[%emt 0:02:46]} 23. Ng4 {[%emt 0:09:35]} Bxc3 {[%emt 0:02:16]} 24. Qxc3 {[%emt 0:06:03]} Nxg4 {[%emt 0:05:06]} 25. hxg4 {[%emt 0:00:19]} Qc7 {[%emt 0:01:26]} 26. Qd2 {[%emt 0:00:29]} Nf6 {[%emt 0:01:50]} 27. Qxh6 {[%emt 0:00:24]} Nxg4 {[%emt 0:00:26]} 28. Qh4 {[%emt 0:00:20]} f5 {[%emt 0:02:07]} 29. exf5 {[%emt 0:02:10]} gxf5 {[%emt 0:00:04]} 30. Qg5+ {[%emt 0:00:18]} Qg7 {[%emt 0:00:21]} 31. Qxf5 {[%emt 0:00:32]} Re7 {[%emt 0:03:33]} 32. Re4 {[%emt 0:02:42]} Nh6 {[%emt 0:01:48]} 33. Qh5 {[%emt 0:00:35]} Rf8 {[%emt 0:02:10]} 34. Rxe5 {[%emt 0:02:14]} Rxf3 {[%emt 0:02:34]} 35. Rg5 {[%emt 0:01:52]} 1-0

[Event "WTCC-65 2018"]
[Site "Radebeul"]
[Date "2018.07.12"]
[Round "6"]
[White "Vucenovic, Dragomir"]
[Black "Nehmert, Ulrich"]
[Result "1/2-1/2"]
[ECO "A43"]
[WhiteElo "2186"]
[BlackElo "2220"]
[Annotator "NA"]
[PlyCount "60"]
[EventDate "2018.07.07"]
[EventType "team-tourn"]
[EventCountry "GER"]
[SourceTitle "playchess.com"]
[Source "ChessBase"]
[SourceQuality "1"]
[TimeControl "40/5400+30:1800+30"]

1. d4 {[%emt 0:00:00]} Nf6 {[%emt 0:00:17]} 2. Nf3 {[%emt 0:00:00]} c5 {[%emt 0:00:22]} 3. d5 {[%emt 0:00:19]} g6 {[%emt 0:00:29]} 4. g3 {[%emt 0:00:34]} b5 {[%emt 0:01:00]} 5. Bg2 {[%emt 0:04:52]} Bb7 {[%emt 0:02:13]} 6. c4 {[%emt 0:03:18]} bxc4 {[%emt 0:05:56]} 7. Nc3 {[%emt 0:00:16]} d6 {[%emt 0:00:20]} 8. O-O {[%emt 0:03:56]} Bg7 {[%emt 0:00:58]} 9. Nd2 {[%emt 0:05:56]} O-O {[%emt 0:06:28]} 10. Nxc4 {[%emt 0:00:52]} Ba6 {[%emt 0:01:48]} 11. Qa4 {[%emt 0:11:58]} Qe8 {[%emt 0:10:11]} 12. b3 {[%emt 0:08:50]} Qxa4 {[%emt 0:14:45]} 13. Nxa4 {[%emt 0:00:07]} Nfd7 {[%emt 0:01:10]} 14. Bb2 {[%emt 0:01:05]} Bxc4 {[%emt 0:01:25]} 15. Bxg7 {[%emt 0:01:20]} Kxg7 {[%emt 0:01:18]} 16. bxc4 {[%emt 0:00:45]} Na6 {[%emt 0:00:24]} 17. Rfb1 {[%emt 0:05:38]} Rfb8 {[%emt 0:05:09]} 18. Rb5 {[%emt 0:07:23]} Nc7 {[%emt 0:05:46]} 19. Rb3 {[%emt 0:01:22]} a5 {[%emt 0:05:25]} 20. Bh3 {[%emt 0:05:28]} f5 {[%emt 0:03:39]} 21. e4 {[%emt 0:05:22]} Rb4 {[%emt 0:00:24]} 22. exf5 {[%emt 0:02:25]} Ne5 {[%emt 0:01:44]} 23. Nb6 {[%emt 0:11:34]} Rb8 {[%emt 0:10:56]} 24. f6+ {[%emt 0:00:28]} exf6 {[%emt 0:05:57]} 25. Nd7 {[%emt 0:00:54]} Re8 {[%emt 0:05:33]} 26. Nxe5 {[%emt 0:03:03]} fxe5 {[%emt 0:00:04]} 27. Rc1 {[%emt 0:02:18]} Na8 {[%emt 0:02:43]} 28. Bd7 {[%emt 0:02:07]} Re7 {[%emt 0:02:17]} 29. Bc6 {[%emt 0:03:19]} Nb6 {[%emt 0:00:48]} 30. Rbc3 {[%emt 0:01:03]} Ra7 1/2-1/2